bitfinex/quotes_SOLUSD_20260223
["timestamp","ask_amount","ask_price","bid_price","bid_amount"]
[1771851849032,1.25144182,80.687,80.658,2.64862238]
[1771851849417,12.39279697,80.693,80.661,2.64862238]
[1771851850034,13.6459402,80.693,80.661,2.64862238]
[1771851850235,1.25482392,80.692,80.661,2.64862238]
[1771851850934,12.39172728,80.699,80.663,2.64862238]
[1771851851114,12.39172728,80.699,80.671,2.64862238]
[1771851851636,1.25648034,80.698,80.671,2.64862238]
[1771851852624,1.25812337,80.696,80.671,2.64862238]
[1771851853216,12.3920344,80.697,80.671,2.64862238]
[1771851853217,3.87087449,80.69,80.671,2.64862238]
[1771851853521,1.25974139,80.693,80.671,2.64862238]
[1771851854113,1.25974139,80.699,80.671,2.64862238]
[1771851854318,12.39186371,80.699,80.673,2.64862238]
[1771851854723,12.39186371,80.699,80.675,2.64862238]
[1771851855939,13.65479235,80.699,80.675,2.64862238]
[1771851856841,1.26447653,80.698,80.675,2.64862238]
[1771851859239,3.87087449,80.69,80.661,12.39756511]
[1771851859427,2.65419046,80.689,80.661,12.39756511]
[1771851861251,12.39341661,80.688,80.663,12.39725772]
[1771851861539,12.39341661,80.688,80.664,2.68257912]
[1771851861741,12.392867,80.692,80.664,2.68257912]
[1771851864546,3.87087449,80.7,80.666,2.68257912]
[1771851864848,2.65419046,80.7,80.671,2.68257912]
[1771851867437,12.39172728,80.699,80.673,2.68257912]
[1771851867855,2.65419046,80.698,80.66,3.87087449]
[1771851868046,2.65419046,80.698,80.661,2.68257912]
[1771851868243,2.65419046,80.698,80.662,2.68257912]
[1771851873248,2.65419046,80.696,80.664,2.68257912]
[1771851873755,2.65419046,80.689,80.654,2.68257912]
[1771851876255,2.65419046,80.687,80.656,2.68257912]
[1771851878355,3.69383402,80.711,80.634,62.00785749]
[1771851878356,2.65419046,80.693,80.661,2.68257912]
[1771851878561,2.65419046,80.693,80.66,3.87087449]
[1771851878562,2.65419046,80.71,80.681,2.68257912]
[1771851879269,2.65419046,80.699,80.667,2.68257912]
[1771851879560,2.65419046,80.689,80.657,12.39817994]
[1771851879952,2.65419046,80.689,80.661,2.68257912]
[1771851881260,2.65419046,80.687,80.661,2.68257912]
[1771851882157,2.65419046,80.685,80.653,2.68257912]
[1771851882344,2.65419046,80.679,80.653,2.68257912]
[1771851885239,2.65419046,80.677,80.654,12.3986411]
[1771851885744,2.65419046,80.677,80.655,2.68257912]
[1771851886552,2.65419046,80.677,80.654,12.3986411]
[1771851886553,2.65419046,80.694,80.661,2.68257912]
[1771851886754,2.65419046,80.689,80.661,2.68257912]
[1771851890868,2.56437566,80.687,80.662,14.98450388]
[1771851891167,2.56437566,80.669,80.641,2.58709246]
[1771851896873,2.56437566,80.667,80.643,2.58709246]
[1771851900380,2.56437566,80.659,80.639,2.58709246]
[1771851900763,2.56437566,80.659,80.632,2.58709246]
[1771851901972,30.98467703,80.686,80.634,2.58709246]
[1771851902170,2.56437566,80.689,80.651,2.58709246]
[1771851902972,3.86861786,80.68,80.651,2.58709246]
[1771851903156,2.56437566,80.679,80.651,2.58709246]
[1771851903861,2.56437566,80.685,80.651,2.58709246]
[1771851904672,2.56437566,80.679,80.652,12.39894856]
[1771851905275,2.56437566,80.679,80.651,2.58709246]
[1771851905589,3.86861786,80.68,80.64,3.86861786]
[1771851905590,2.56437566,80.659,80.645,12.39996552]
[1771851906288,2.56437566,80.659,80.623,31.00830989]
[1771851906495,2.56437566,80.649,80.623,31.00830989]
[1771851906676,2.56437566,80.649,80.62,3.86861786]
[1771851907580,2.56437566,80.629,80.584,105.47999601]
[1771851907889,2.56437566,80.629,80.59,3.96861786]
[1771851908270,2.56437566,80.629,80.591,2.58709246]
[1771851908470,2.56437566,80.619,80.591,2.58709246]
[1771851908885,2.56437566,80.619,80.592,12.40817947]
[1771851910079,2.56437566,80.619,80.592,43.42862814]
[1771851910465,3.86861786,80.61,80.592,2.58709246]
[1771851910666,3.86861786,80.61,80.591,12.40833343]
[1771851910667,2.56437566,80.609,80.591,12.40833343]
[1771851910866,3.86861786,80.62,80.59,2.68709246]
[1771851911071,2.56437566,80.629,80.591,2.58709246]
[1771851912573,2.56437566,80.628,80.593,2.58709246]
[1771851913400,3.69383402,80.647,80.592,12.40817947]
[1771851913401,2.56437566,80.658,80.621,2.58709246]
[1771851913584,2.56437566,80.658,80.631,2.58709246]
[1771851915893,2.56437566,80.656,80.625,2.58709246]
[1771851918389,2.66226741,80.654,80.627,2.56120111]
[1771851918791,2.80260465,80.66,80.631,2.54662099]
[1771851920079,15.20046474,80.66,80.633,2.54662099]
[1771851920481,2.80260465,80.659,80.633,2.54662099]
[1771851922298,2.80260465,80.657,80.633,2.54662099]
[1771851922501,2.80260465,80.657,80.634,12.40171639]
[1771851923284,3.86861786,80.64,80.609,2.54662099]
[1771851923485,2.80260465,80.639,80.609,2.54662099]
[1771851924314,2.80260465,80.637,80.611,2.54662099]
[1771851924487,0.2,80.75,80.61,12.40540875]
[1771851924488,2.80260465,80.648,80.621,2.54662099]
[1771851925903,2.80260465,80.648,80.605,2.54662099]
[1771851926200,12.39876351,80.654,80.59,0.1]
[1771851926201,2.80260465,80.635,80.601,2.54662099]
[1771851926702,2.80260465,80.633,80.603,2.54662099]
[1771851927607,2.80260465,80.631,80.604,12.40633219]
[1771851931102,2.80260465,80.629,80.604,12.40633219]
[1771851931788,2.80260465,80.644,80.611,2.54662099]
[1771851933700,2.80260465,80.644,80.613,2.54662099]
[1771851934012,12.40033232,80.643,80.613,2.54662099]
[1771851935004,2.80260465,80.642,80.613,2.54662099]
[1771851935912,2.80260465,80.642,80.615,2.54662099]
[1771851936110,2.80260465,80.648,80.621,2.54662099]
[1771851937510,2.80260465,80.648,80.623,2.54662099]
[1771851939711,2.80260465,80.648,80.624,12.40325461]
[1771851941413,2.80260465,80.648,80.625,2.54662099]
[1771851941611,2.80260465,80.654,80.625,2.54662099]
[1771851941815,2.80260465,80.654,80.627,2.54662099]
[1771851942897,2.80260465,80.654,80.626,12.40294694]
[1771851942898,2.80260465,80.672,80.631,2.54662099]
[1771851943093,2.80260465,80.672,80.641,2.54662099]
[1771851943516,15.19586767,80.689,80.651,2.54662099]
[1771851943810,2.80260465,80.688,80.653,2.54662099]
[1771851944196,3.86861786,80.68,80.653,2.54662099]
[1771851945419,2.80260465,80.679,80.655,2.54662099]
[1771851945712,2.80260465,80.669,80.637,12.401255]
[1771851946102,2.80260465,80.659,80.633,12.40176038]
[1771851947319,2.80260465,80.659,80.63,3.86861786]
[1771851947320,2.80260465,80.659,80.63,3.87061658]
[1771851947509,2.80260465,80.659,80.631,2.15242052]
[1771851948315,2.64243829,80.665,80.632,12.40202401]
[1771851948518,2.64243829,80.665,80.633,2.16004045]
[1771851948819,2.64243829,80.659,80.633,2.16004045]
[1771851949408,2.64243829,80.659,80.634,12.40171639]
[1771851949803,2.64243829,80.659,80.634,14.56554337]
[1771851950015,2.64243829,80.659,80.635,2.16382698]
[1771851951620,2.64243829,80.659,80.637,2.17118639]
[1771851953625,2.64243829,80.659,80.63,3.87061658]
[1771851953626,2.64243829,80.659,80.638,14.57949441]
[1771851954335,2.64243829,80.659,80.638,12.40110121]
[1771851954626,2.64243829,80.659,80.639,2.18196338]
[1771851954826,2.64243829,80.659,80.64,12.40079365]
[1771851962321,16.09129016,80.695,80.605,2.82523319]
[1771851962322,0.68650548,80.649,80.605,2.82523319]
[1771851962513,0.68650548,80.629,80.605,2.82523319]
[1771851962718,43.39309181,80.658,80.611,2.82523319]
[1771851962719,0.68650548,80.648,80.611,2.82523319]
[1771851963118,3.87061658,80.62,80.591,2.82523319]
[1771851963428,3.87061658,80.6,80.59,0.1]
[1771851963626,2.64243829,80.622,80.59,12.50836253]
[1771851963817,2.64243829,80.629,80.59,16.37897911]
[1771851964016,2.64243829,80.629,80.59,47.40019762]
[1771851964220,12.4014088,80.636,80.59,43.52958104]
[1771851964221,3.87061658,80.62,80.59,43.52958104]
[1771851964424,6.51305487,80.62,80.59,43.52958104]
[1771851964731,2.64243829,80.619,80.59,12.50836253]
[1771851965430,2.64243829,80.617,80.591,2.82523319]
[1771851966332,2.64243829,80.609,80.59,0.1]
[1771851966722,3.87061658,80.6,80.59,0.1]
[1771851967333,3.87061658,80.6,80.591,12.40833343]
[1771851967535,3.87061658,80.6,80.59,0.1]
[1771851968620,2.64243829,80.617,80.59,2.92523319]
[1771851969355,3.87061658,80.61,80.59,2.92523319]
[1771851970742,12.40448546,80.616,80.591,2.82523319]
[1771851970945,3.87061658,80.61,80.591,2.82523319]
[1771851971638,2.64243829,80.609,80.591,2.82523319]
[1771851971839,2.64243829,80.609,80.59,0.1]
[1771851972743,2.64243829,80.609,80.59,2.92523319]
[1771851972949,3.87061658,80.6,80.59,0.1]
[1771851973119,6.51305487,80.6,80.59,0.1]
[1771851973542,3.87061658,80.6,80.59,0.1]
[1771851974728,31.0101209,80.619,80.59,0.1]
[1771851974729,3.87061658,80.61,80.59,2.92523319]
[1771851974934,2.64243829,80.627,80.59,2.92523319]
[1771851975143,3.87061658,80.61,80.59,2.92523319]
[1771851975445,6.51305487,80.61,80.59,2.92523319]
[1771851977143,2.64243829,80.609,80.591,12.40833343]
[1771851981951,2.64243829,80.609,80.591,2.75757784]
[1771851984859,2.64243829,80.609,80.591,12.40829362]
[1771851986056,2.81694914,80.599,80.575,2.75757784]
[1771851986251,6.68756572,80.59,80.571,12.41141353]
[1771851986457,2.81694914,80.589,80.571,12.41141353]
[1771851987350,2.81694914,80.589,80.572,2.75757784]
[1771851987551,2.81694914,80.599,80.572,2.75757784]
[1771851988960,2.81694914,80.599,80.573,12.41110545]
[1771851989263,2.81694914,80.599,80.574,2.75757784]
[1771851991359,2.81694914,80.599,80.576,2.75757784]
[1771851992062,2.81694914,80.597,80.576,2.75757784]
[1771851996260,2.81694914,80.597,80.577,12.41048934]
[1771851998369,2.81694914,80.597,80.575,2.75757784]
[1771851999149,2.81694914,80.609,80.575,2.75757784]
[1771851999393,2.81694914,80.618,80.581,2.75757784]
[1771852001973,2.81694914,80.624,80.591,2.75757784]
[1771852002772,2.81694914,80.619,80.591,2.75757784]
[1771852002978,2.81694914,80.619,80.583,2.75757784]
[1771852003154,12.40278645,80.628,80.583,2.75757784]
[1771852003155,2.81694914,80.609,80.583,2.75757784]
[1771852004172,2.81694914,80.609,80.584,12.40941129]
[1771852004557,2.81694914,80.609,80.585,2.75757784]
[1771852006669,2.81694914,80.609,80.586,12.40910331]
[1771852007072,2.81694914,80.609,80.586,15.16668115]
[1771852007451,2.81694914,80.609,80.587,2.75757784]
[1771852008180,2.81694914,80.609,80.588,12.40879535]
[1771852009071,2.81694914,80.609,80.588,15.42293762]
[1771852010180,2.81694914,80.609,80.589,3.01414227]
[1771852013782,2.81694914,80.609,80.59,12.4084874]
[1771852015466,6.4701886,80.64,80.601,3.01414227]
[1771852015871,43.39793425,80.649,80.601,3.01414227]
[1771852017569,10.34213668,80.65,80.603,3.01414227]
[1771852017570,0.87551148,80.646,80.603,3.01414227]
[1771852018788,0.87551148,80.646,80.61,3.87544891]
[1771852018985,0.87551148,80.646,80.611,3.01414227]
[1771852019181,0.88142592,80.639,80.611,3.01414227]
[1771852019869,0.88725611,80.637,80.611,3.01414227]
[1771852022175,0.89875579,80.635,80.613,3.01414227]
[1771852023190,0.89875579,80.635,80.608,3.01414227]
[1771852023387,0.90998315,80.629,80.602,3.01414227]
[1771852023686,0.90998315,80.629,80.591,3.01414227]
[1771852024291,0.91549803,80.627,80.593,3.01414227]
[1771852025590,0.92092908,80.625,80.595,3.01414227]
[1771852030886,3.87544891,80.64,80.601,3.01414227]
[1771852031093,0.94352795,80.641,80.611,3.01414227]
[1771852034279,0.95624284,80.639,80.611,3.01414227]
[1771852035480,12.40110121,80.638,80.611,3.01414227]
[1771852035789,0.95934053,80.637,80.611,3.01414227]
[1771852038705,0.97433123,80.635,80.613,2.9836806]
[1771852038899,12.39945625,80.649,80.621,2.9836806]
[1771852039105,0.97433123,80.648,80.621,2.9836806]
[1771852041495,12.39971728,80.647,80.622,2.9836806]
[1771852043712,0.988522,80.647,80.622,2.9836806]
[1771852043895,0.988522,80.647,80.624,2.9836806]
[1771852046010,0.99396132,80.654,80.626,2.9836806]
[1771852048893,1.00186071,80.652,80.626,2.9836806]
[1771852051117,12.3991023,80.651,80.626,2.9836806]
[1771852051299,12.39787252,80.659,80.631,2.9836806]
[1771852051618,1.009511,80.658,80.631,2.9836806]
[1771852053713,1.01446519,80.656,80.631,2.9836806]
[1771852054915,12.39848738,80.655,80.631,2.9836806]
[1771852055123,13.41538582,80.655,80.631,2.9836806]
[1771852059835,13.42648706,80.659,80.631,2.9836806]
[1771852060028,13.42648706,80.659,80.633,2.9836806]
[1771852060911,12.39679666,80.666,80.641,2.9836806]
[1771852063022,1.03529948,80.669,80.641,2.9836806]
[1771852063326,1.03529948,80.669,80.636,2.9836806]
[1771852065427,1.04180263,80.667,80.638,2.9836806]
[1771852065607,1.04180263,80.681,80.651,2.9836806]
[1771852066211,1.04180263,80.679,80.651,2.9836806]
[1771852067322,43.38047137,80.682,80.651,2.9836806]
[1771852067634,12.39433826,80.682,80.66,3.87544891]
[1771852067816,12.39433826,80.682,80.671,2.8379848]
[1771852068218,12.39295584,80.691,80.671,2.8379848]
[1771852068824,0.2,80.7,80.671,2.8379848]
[1771852068825,12.39241563,80.695,80.671,2.8379848]
[1771852069029,12.39241563,80.695,80.681,2.8379848]
[1771852069432,12.39179824,80.699,80.681,2.8379848]
[1771852069736,3.69383402,80.725,80.68,3.87544891]
[1771852069737,0.2,80.76,80.691,2.8379848]
[1771852069933,0.2,80.76,80.682,12.39433826]
[1771852069934,6.46063137,80.718,80.701,2.8379848]
[1771852070138,1.05216794,80.717,80.69,2.8379848]
[1771852070339,1.05414425,80.709,80.681,2.8379848]
[1771852071621,1.05610487,80.707,80.673,2.8379848]
[1771852074243,1.05997473,80.705,80.673,2.8379848]
[1771852076831,43.36835843,80.704,80.673,2.8379848]
[1771852077150,1.06559562,80.7,80.673,2.8379848]
[1771852078320,12.39172728,80.699,80.673,2.8379848]
[1771852079843,13.46271462,80.699,80.673,2.8379848]
[1771852080048,1.07098734,80.698,80.673,2.8379848]
[1771852080346,12.3920344,80.697,80.673,2.8379848]
[1771852080727,12.3920344,80.697,80.67,3.86732773]
[1771852080728,12.3920344,80.697,80.671,2.8379848]
[1771852080928,12.39019192,80.709,80.671,2.8379848]
[1771852081350,1.07274571,80.708,80.671,2.8379848]
[1771852084253,1.07794261,80.706,80.673,2.8379848]
[1771852086647,1.08287469,80.704,80.675,2.8379848]
[1771852087634,13.47468436,80.709,80.677,2.8379848]
[1771852087839,1.08449244,80.708,80.677,2.8379848]
[1771852089257,1.08608891,80.717,80.691,2.8379848]
[1771852089652,13.47393081,80.728,80.7,3.86732773]
[1771852089858,12.38734383,80.728,80.701,2.8379848]
[1771852091950,12.38734383,80.728,80.702,12.39126663]
[1771852092146,0.2,80.73,80.711,2.8379848]
[1771852092954,1.28804299,80.73,80.711,2.8379848]
[1771852093157,1.08804299,80.729,80.701,2.8379848]
[1771852094441,0.2,80.73,80.703,2.8379848]
[1771852094648,12.58701054,80.73,80.711,2.8379848]
[1771852094854,13.67600609,80.73,80.711,2.8379848]
[1771852095061,1.08899555,80.729,80.703,2.8379848]
[1771852096863,12.38727579,80.728,80.703,2.8379848]
[1771852097068,0.2,80.73,80.711,2.8379848]
[1771852098865,12.58700995,80.73,80.711,2.8379848]
[1771852099159,0.2,80.73,80.711,2.8379848]
[1771852101571,12.58710283,80.73,80.711,2.8379848]
[1771852101966,0.2,80.73,80.711,2.8379848]
[1771852103370,12.3846928,80.745,80.721,3.13440203]
[1771852105246,12.38405429,80.749,80.721,3.13440203]
[1771852105447,0.2,80.75,80.731,3.13440203]
[1771852105866,12.58396884,80.75,80.731,3.13440203]
[1771852106277,0.2,80.75,80.731,3.13440203]
[1771852107575,0.2,80.75,80.733,3.13440203]
[1771852109781,0.2,80.75,80.735,3.13440203]
[1771852114380,0.2,80.75,80.664,49.58833761]
[1771852114381,3.17313931,80.84,80.736,303.45818468]
[1771852114557,3.17313931,80.829,80.762,3.69383402]
[1771852114755,3.17313931,80.809,80.762,3.69383402]
[1771852114954,3.17313931,80.799,80.739,3.69383402]
[1771852115563,3.17313931,80.806,80.739,3.69383402]
[1771852116165,3.17313931,80.806,80.743,3.69383402]
[1771852117285,3.17313931,80.806,80.744,0.02719707]
[1771852118379,3.17313931,80.806,80.748,0.03606023]
[1771852118974,3.86177219,80.84,80.747,3.69383402]
[1771852118975,3.17313931,80.799,80.747,3.69383402]
[1771852119165,3.17313931,80.799,80.748,0.03606023]
[1771852119365,3.86177219,80.82,80.753,3.13440203]
[1771852119576,3.86177219,80.84,80.744,154.81026452]
[1771852119577,3.86177219,80.83,80.758,3.13440203]
[1771852120083,3.86177219,80.81,80.758,3.13440203]
[1771852120585,3.86177219,80.81,80.763,3.13440203]
[1771852120984,12.37485923,80.809,80.763,3.13440203]
[1771852121282,12.37485923,80.809,80.762,3.69383402]
[1771852121469,2.94343723,80.808,80.759,43.33882291]
[1771852122478,2.94343723,80.799,80.759,43.33882291]
[1771852124866,2.94343723,80.798,80.759,30.95630208]
[1771852125176,2.94343723,80.798,80.76,3.13440203]
[1771852128190,2.94343723,80.798,80.763,2.96011158]
[1771852129076,2.94343723,80.798,80.762,43.33721304]
[1771852129077,12.37314222,80.821,80.764,2.96011158]
[1771852130967,3.11295431,80.82,80.766,2.96011158]
[1771852131382,3.11295431,80.839,80.769,2.96011158]
[1771852131875,3.11295431,80.839,80.765,253.82281927]
[1771852131876,12.36680726,80.862,80.773,2.96011158]
[1771852132073,12.36680726,80.862,80.777,2.96011158]
[1771852132472,3.86177219,80.86,80.777,2.96011158]
[1771852133372,3.85214042,80.86,80.782,2.96011158]
[1771852133676,3.85214042,80.87,80.782,2.96011158]
[1771852133877,3.11295431,80.866,80.782,2.96011158]
[1771852134574,3.11295431,80.864,80.787,2.96011158]
[1771852134977,3.11295431,80.859,80.787,2.96011158]
[1771852136297,3.11295431,80.857,80.792,2.96011158]
[1771852138383,3.11295431,80.857,80.793,154.71637392]
[1771852138578,3.11295431,80.857,80.797,2.96011158]
[1771852138978,3.11295431,80.864,80.797,2.96011158]
[1771852139179,3.11295431,80.87,80.797,2.96011158]
[1771852139589,3.11295431,80.87,80.801,2.96011158]
[1771852139590,3.11295431,80.869,80.801,2.96011158]
[1771852139990,3.11295431,80.88,80.801,2.96011158]
[1771852140188,3.11295431,80.879,80.801,2.96011158]
[1771852140679,3.11295431,80.877,80.806,2.96011158]
[1771852141795,12.36430178,80.878,80.806,2.96011158]
[1771852141796,3.11295431,80.869,80.806,2.96011158]
[1771852143204,3.11295431,80.867,80.808,2.96011158]
[1771852143585,3.11295431,80.849,80.807,43.3130793]
[1771852143997,3.11295431,80.849,80.807,46.27319088]
[1771852145387,3.11295431,80.847,80.8,2.96011158]
[1771852145894,3.85214042,80.83,80.793,2.96011158]
[1771852146103,3.11295431,80.829,80.793,2.96011158]
[1771852146298,3.11295431,80.819,80.785,43.32487465]
[1771852146805,3.11295431,80.819,80.785,12.37853561]
[1771852147304,3.11295431,80.809,80.764,2.96011158]
[1771852147502,3.11295431,80.807,80.766,2.96011158]
[1771852148584,12.37531866,80.806,80.767,15.34140592]
[1771852148900,3.11295431,80.805,80.767,46.29464177]
[1771852149101,12.37531866,80.806,80.767,46.29464177]
[1771852149102,3.11295431,80.789,80.767,12.38129434]
[1771852150899,3.11295431,80.779,80.753,9.3796474]
[1771852151104,3.11295431,80.779,80.737,2.96011158]
[1771852151298,3.11295431,80.828,80.785,2.55551349]
[1771852151487,3.11295431,80.828,80.773,3.69383402]
[1771852151488,3.11295431,80.828,80.787,2.56143603]
[1771852151691,3.11295431,80.828,80.789,2.56143603]
[1771852151992,3.11295431,80.828,80.791,2.56143603]
[1771852153596,3.11295431,80.828,80.792,43.32112089]
[1771852155506,3.11295431,80.828,80.792,30.94365778]
[1771852158193,3.11295431,80.828,80.789,2.59324982]
[1771852160301,3.11295431,80.828,80.79,43.32219333]
[1771852160495,3.85214042,80.85,80.792,3.2002496]
[1771852160698,30.91831219,80.859,80.792,3.2002496]
[1771852160699,12.36736006,80.858,80.792,3.2002496]
[1771852161099,3.85214042,80.85,80.792,3.2002496]
[1771852161315,43.28576021,80.858,80.794,3.2002496]
[1771852162607,3.02271285,80.855,80.796,3.2002496]
[1771852162807,3.02271285,80.849,80.796,3.2002496]
[1771852163404,3.02271285,80.839,80.796,3.2002496]
[1771852164614,3.02271285,80.837,80.797,12.37669715]
[1771852167325,3.02271285,80.835,80.798,3.2002496]
[1771852170810,3.02271285,80.833,80.799,12.37639079]
[1771852173132,3.02271285,80.831,80.795,3.2002496]
[1771852176636,3.02271285,80.829,80.797,3.2002496]
[1771852180430,3.02271285,80.827,80.791,3.2002496]
[1771852183128,3.02271285,80.825,80.793,3.2002496]
[1771852184620,3.02271285,80.825,80.795,3.2002496]
[1771852186538,3.02271285,80.825,80.796,12.37685033]
[1771852186746,3.02271285,80.825,80.796,15.57709993]
[1771852187132,3.02271285,80.825,80.797,3.2002496]
[1771852188945,3.02271285,80.825,80.798,12.37654397]
[1771852189446,3.02271285,80.825,80.798,15.56729362]
[1771852196948,3.85407559,80.81,80.764,12.38175424]
[1771852197153,3.15594961,80.809,80.767,3.69383402]
[1771852197747,3.85407559,80.8,80.767,3.69383402]
[1771852197950,3.15594961,80.799,80.767,3.69383402]
[1771852198367,3.15594961,80.797,80.768,12.38114104]
[1771852200158,3.15594961,80.789,80.755,30.95747459]
[1771852200346,3.15594961,80.789,80.753,3.19074965]
[1771852200738,3.15594961,80.8,80.753,3.19074965]
[1771852201166,3.15594961,80.8,80.76,3.19074965]
[1771852201859,12.37263224,80.824,80.761,3.19074965]
[1771852202158,6.45253424,80.825,80.766,3.19074965]
[1771852202545,12.3725626,80.824,80.766,3.19074965]
[1771852203541,6.45253424,80.825,80.772,3.19074965]
[1771852203853,1.27404589,80.836,80.772,3.19074965]
[1771852204740,1.26727989,80.829,80.772,3.19074965]
[1771852205941,3.85407559,80.82,80.772,3.19074965]
[1771852206135,1.26059161,80.819,80.774,3.19074965]
[1771852208460,1.26059161,80.819,80.775,43.33023831]
[1771852208663,1.26059161,80.819,80.776,3.19074965]
[1771852208863,1.24011025,80.809,80.776,3.19074965]
[1771852209963,1.24011025,80.809,80.775,43.33023831]
[1771852209964,1.24011025,80.809,80.775,12.38006809]
[1771852210759,1.22655714,80.807,80.775,3.19074965]
[1771852211157,1.22655714,80.799,80.769,3.19074965]
[1771852212661,1.22655714,80.799,80.77,12.38083446]
[1771852212863,1.22655714,80.799,80.771,3.19074965]
[1771852215070,1.22655714,80.799,80.772,15.57127755]
[1771852215749,1.22655714,80.799,80.743,49.53967695]
[1771852215750,1.19401324,80.779,80.752,3.19074965]
[1771852215972,1.19401324,80.779,80.753,15.57419051]
[1771852217455,1.19401324,80.779,80.747,3.19074965]
[1771852219975,5.01143807,80.77,80.748,12.38420765]
[1771852220274,1.15736248,80.779,80.749,3.1167069]
[1771852224257,1.15736248,80.779,80.751,3.1167069]
[1771852224479,1.12870218,80.807,80.751,3.1167069]
[1771852224767,1.12870218,80.799,80.751,3.1167069]
[1771852224973,4.98277777,80.79,80.751,3.1167069]
[1771852225171,1.12870218,80.789,80.751,3.1167069]
[1771852226980,1.12870218,80.789,80.753,3.1167069]
[1771852227167,1.11769363,80.787,80.753,3.1167069]
[1771852229072,3.85407559,80.79,80.755,3.1167069]
[1771852229257,1.10693652,80.793,80.755,3.1167069]
[1771852229457,1.10165045,80.792,80.755,3.1167069]
[1771852230077,3.85407559,80.79,80.755,3.1167069]
[1771852230269,1.10165045,80.789,80.755,3.1167069]
[1771852230458,1.10165045,80.789,80.757,3.1167069]
[1771852234078,1.10165045,80.789,80.759,3.1167069]
[1771852236482,1.10165045,80.789,80.761,3.1167069]
[1771852238477,1.10165045,80.789,80.762,12.38206087]
[1771852238683,1.10165045,80.789,80.763,3.1167069]
[1771852239269,6.45477012,80.802,80.763,3.1167069]
[1771852239270,3.85407559,80.8,80.763,3.1167069]
[1771852239471,6.45477012,80.802,80.763,3.1167069]
[1771852239671,12.37575312,80.804,80.763,3.1167069]
[1771852239869,13.4277698,80.804,80.763,3.1167069]
[1771852240183,1.05201668,80.803,80.763,3.1167069]
[1771852240589,1.04736142,80.801,80.765,3.1167069]
[1771852246097,1.024875,80.799,80.767,3.1167069]
[1771852248693,1.024875,80.799,80.768,12.38114104]
[1771852248990,1.024875,80.799,80.769,3.15648874]
[1771852250682,0.99955092,80.798,80.771,3.15648874]
[1771852253984,0.98753212,80.803,80.773,3.15648874]
[1771852254501,12.3743671,80.813,80.773,3.15648874]
[1771852254799,0.98361753,80.812,80.773,3.15648874]
[1771852255597,6.46903107,80.822,80.775,3.15648874]
[1771852256107,13.35077989,80.834,80.775,3.15648874]
[1771852258506,13.35077989,80.834,80.777,3.15648874]
[1771852258883,3.85600206,80.85,80.78,3.15648874]
[1771852259084,12.36922204,80.846,80.78,3.15648874]
[1771852259295,0.96840366,80.846,80.78,3.15648874]
[1771852260808,0.96105634,80.829,80.782,3.15648874]
[1771852261104,0.96105634,80.829,80.784,3.15648874]
[1771852265010,0.9468613,80.827,80.786,3.15648874]
[1771852268612,0.93330729,80.825,80.788,3.15648874]
[1771852272097,0.92354498,80.823,80.79,3.15648874]
[1771852274419,12.37286877,80.822,80.791,12.37761631]
[1771852274619,12.37286877,80.822,80.792,3.15648874]
[1771852274997,13.28698399,80.822,80.792,3.15648874]
[1771852275504,0.9110439,80.821,80.792,3.15648874]
[1771852279610,12.37317495,80.82,80.794,2.91783103]
[1771852280811,12.37317495,80.82,80.796,2.91783103]
[1771852281824,12.37317495,80.82,80.798,2.91783103]
[1771852284018,0.88220554,80.82,80.798,2.91783103]
[1771852285632,0.87682699,80.819,80.793,12.37719]
[1771852285939,0.87682699,80.819,80.793,15.29502103]
[1771852286138,0.87682699,80.817,80.793,15.29502103]
[1771852286811,0.87682699,80.817,80.794,2.91783103]
[1771852289212,0.87682699,80.817,80.795,12.37700352]
[1771852291728,0.87682699,80.817,80.795,2.91783103]
[1771852295029,0.87682699,80.817,80.771,3.69383402]
[1771852295030,0.87682699,80.817,80.797,2.91783103]
[1771852297132,0.87682699,80.817,80.792,2.91783103]
[1771852297342,0.84936707,80.815,80.792,2.91783103]
[1771852300841,0.84936707,80.815,80.794,2.91783103]
[1771852301132,0.84021574,80.809,80.781,2.91783103]
[1771852301335,0.84021574,80.809,80.761,12.38221418]
[1771852301336,0.84021574,80.809,80.776,2.91783103]
[1771852301639,0.83799322,80.799,80.776,2.91783103]
[1771852303133,0.83579623,80.789,80.762,2.91783103]
[1771852304320,0.83362448,80.794,80.762,2.91783103]
[1771852305348,0.82935551,80.792,80.764,2.91783103]
[1771852306534,0.82725774,80.803,80.764,2.91783103]
[1771852306842,13.20165758,80.812,80.764,2.91783103]
[1771852307170,12.37387045,80.816,80.764,2.91783103]
[1771852308332,0.82110787,80.815,80.766,2.97352781]
[1771852308531,0.82110787,80.821,80.766,2.97352781]
[1771852309755,0.81910483,80.82,80.768,2.97352781]
[1771852310050,4.67510689,80.82,80.768,2.97352781]
[1771852310238,0.81910483,80.819,80.768,2.97352781]
[1771852312650,0.81910483,80.819,80.77,2.97352781]
[1771852315448,0.81910483,80.819,80.772,2.97352781]
[1771852316760,0.80571312,80.817,80.772,2.97352781]
[1771852318159,0.80571312,80.817,80.774,2.97352781]
[1771852318457,0.80208165,80.809,80.774,2.97352781]
[1771852320048,0.80029714,80.813,80.774,2.97352781]
[1771852320247,0.80029714,80.813,80.776,2.97352781]